[Event "Titled Tuesday Blitz July 18 Early 2023"]
[White "Onufrienko, Vladislav"]
[Black "Wang, Alexander J"]
[WhiteFideId "13804332"]
[BlackFideId "30955270"]
[WhiteElo "2607"]
[BlackElo "2299"]
[Result "1-0"]
[Round "1"]
[TimeControl "180+2"]
[Date "2023.07.18"]
[WhiteClock "0:00:47"]
[BlackClock "0:00:04"]
[Board "148"]

1. e4 {[%clk 0:02:58]}  c5 {[%clk 0:02:58]} 2. Nc3 {[%clk 0:02:58]}  d6 {[%clk 0:02:51]} 3. d4 {[%clk 0:02:58]}  cxd4 {[%clk 0:02:45]} 4. Qxd4 {[%clk 0:02:59]}  Nc6 {[%clk 0:02:43]} 5. Qd2 {[%clk 0:02:58]}  Nf6 {[%clk 0:02:42]} 6. b3 {[%clk 0:02:59]}  g6 {[%clk 0:02:37]} 7. Bb2 {[%clk 0:02:58]}  Bg7 {[%clk 0:02:36]} 8. O-O-O {[%clk 0:02:59]}  O-O {[%clk 0:02:34]} 9. f3 {[%clk 0:02:59]}  Ne5 {[%clk 0:02:27]} 10. g4 {[%clk 0:02:54]}  a6 {[%clk 0:02:17]} 11. h4 {[%clk 0:02:51]}  h5 {[%clk 0:02:11]} 12. gxh5 {[%clk 0:01:59]}  Nxh5 {[%clk 0:02:08]} 13. Nd5 {[%clk 0:01:52]}  Be6 {[%clk 0:01:48]} 14. f4 {[%clk 0:01:44]}  Ng4 {[%clk 0:01:31]} 15. Bxg7 {[%clk 0:01:45]}  Kxg7 {[%clk 0:01:31]} 16. Be2 {[%clk 0:01:35]}  Bxd5 {[%clk 0:00:51]} 17. exd5 {[%clk 0:01:36]}  Ngf6 {[%clk 0:00:44]} 18. f5 {[%clk 0:01:30]}  Qb6 {[%clk 0:00:26]} 19. Bxh5 {[%clk 0:01:19]}  Nxh5 {[%clk 0:00:25]} 20. Nf3 {[%clk 0:01:06]}  Qc5 {[%clk 0:00:22]} 21. Rhg1 {[%clk 0:01:00]}  Rac8 {[%clk 0:00:21]} 22. Rg5 {[%clk 0:00:55]}  Nf6 {[%clk 0:00:16]} 23. fxg6 {[%clk 0:00:49]}  fxg6 {[%clk 0:00:15]} 24. Qd3 {[%clk 0:00:47]}  Qa3+ {[%clk 0:00:04]} 25. Kb1 {[%clk 0:00:47]} 1-0


[Site "https://www.chess.com"]

[Event "Titled Tuesday Blitz July 18 Early 2023"]
[White "Freile Martin, Javier"]
[Black "Fiorito, Francisco"]
[WhiteFideId "3600165"]
[BlackFideId "180165"]
[WhiteElo "2294"]
[BlackElo "2606"]
[Result "0-1"]
[Round "1"]
[TimeControl "180+2"]
[Date "2023.07.18"]
[WhiteClock "0:00:40"]
[BlackClock "0:00:11"]
[Board "149"]

1. c4 {[%clk 0:02:58]}  Nf6 {[%clk 0:03:00]} 2. Nc3 {[%clk 0:02:58]}  e5 {[%clk 0:02:54]} 3. Nf3 {[%clk 0:02:57]}  Nc6 {[%clk 0:02:54]} 4. a3 {[%clk 0:02:57]}  d5 {[%clk 0:02:50]} 5. cxd5 {[%clk 0:02:56]}  Nxd5 {[%clk 0:02:51]} 6. e4 {[%clk 0:02:56]}  Nxc3 {[%clk 0:02:24]} 7. bxc3 {[%clk 0:02:56]}  Bd6 {[%clk 0:02:22]} 8. Rb1 {[%clk 0:02:53]}  O-O {[%clk 0:02:20]} 9. Bc4 {[%clk 0:02:50]}  Qf6 {[%clk 0:02:11]} 10. h3 {[%clk 0:02:48]}  h6 {[%clk 0:02:01]} 11. O-O {[%clk 0:02:46]}  Rb8 {[%clk 0:01:59]} 12. Qe2 {[%clk 0:02:42]}  a6 {[%clk 0:01:50]} 13. Rd1 {[%clk 0:02:38]}  b5 {[%clk 0:01:48]} 14. Ba2 {[%clk 0:02:35]}  Bc5 {[%clk 0:01:30]} 15. Bb2 {[%clk 0:02:31]}  Rd8 {[%clk 0:01:25]} 16. d4 {[%clk 0:02:29]}  exd4 {[%clk 0:01:00]} 17. cxd4 {[%clk 0:02:28]}  Nxd4 {[%clk 0:00:57]} 18. Rxd4 {[%clk 0:02:05]}  Bxd4 {[%clk 0:00:52]} 19. e5 {[%clk 0:02:05]}  Qb6 {[%clk 0:00:51]} 20. Rd1 {[%clk 0:01:58]}  c5 {[%clk 0:00:47]} 21. Bc1 {[%clk 0:01:42]}  Be6 {[%clk 0:00:45]} 22. Bb1 {[%clk 0:01:41]}  Kf8 {[%clk 0:00:36]} 23. Qe4 {[%clk 0:01:26]}  Bxf2+ {[%clk 0:00:34]} 24. Kxf2 {[%clk 0:01:22]}  Rxd1 {[%clk 0:00:35]} 25. Be3 {[%clk 0:01:19]}  Rbd8 {[%clk 0:00:23]} 26. Qh7 {[%clk 0:01:17]}  Rxb1 {[%clk 0:00:20]} 27. Qxb1 {[%clk 0:01:16]}  Kg8 {[%clk 0:00:20]} 28. Qc2 {[%clk 0:01:13]}  Qc6 {[%clk 0:00:21]} 29. Bxc5 {[%clk 0:01:10]}  Rc8 {[%clk 0:00:21]} 30. Qd2 {[%clk 0:01:05]}  Qxc5+ {[%clk 0:00:21]} 31. Kg3 {[%clk 0:01:05]}  Qc3 {[%clk 0:00:19]} 32. Qd6 {[%clk 0:01:04]}  g5 {[%clk 0:00:17]} 33. Qxa6 {[%clk 0:01:02]}  Qc4 {[%clk 0:00:17]} 34. Qd6 {[%clk 0:01:01]}  Qf4+ {[%clk 0:00:17]} 35. Kf2 {[%clk 0:01:01]}  Rc2+ {[%clk 0:00:18]} 36. Kg1 {[%clk 0:00:59]}  Rc1+ {[%clk 0:00:11]} 37. Kf2 {[%clk 0:00:58]}  Rc8 {[%clk 0:00:12]} 38. Qd3 {[%clk 0:00:56]}  Qc4 {[%clk 0:00:11]} 39. Qe3 {[%clk 0:00:55]}  Qa2+ {[%clk 0:00:12]} 40. Kg3 {[%clk 0:00:55]}  Qc4 {[%clk 0:00:12]} 41. Nxg5 {[%clk 0:00:54]}  hxg5 {[%clk 0:00:11]} 42. Qxg5+ {[%clk 0:00:54]}  Kf8 {[%clk 0:00:12]} 43. Qh6+ {[%clk 0:00:54]}  Ke8 {[%clk 0:00:13]} 44. Qh8+ {[%clk 0:00:53]}  Kd7 {[%clk 0:00:13]} 45. Qh5 {[%clk 0:00:53]}  Qd3+ {[%clk 0:00:13]} 46. Kh2 {[%clk 0:00:52]}  Rc3 {[%clk 0:00:13]} 47. Qg5 {[%clk 0:00:51]}  Rxa3 {[%clk 0:00:11]} 48. Qc1 {[%clk 0:00:45]}  Qg3+ {[%clk 0:00:10]} 49. Kg1 {[%clk 0:00:44]}  Qb3 {[%clk 0:00:11]} 50. Qd2+ {[%clk 0:00:43]}  Qd5 {[%clk 0:00:11]} 51. Qb4 {[%clk 0:00:42]}  Ra1+ {[%clk 0:00:11]} 52. Kh2 {[%clk 0:00:42]}  Qxe5+ {[%clk 0:00:11]} 53. g3 {[%clk 0:00:40]}  Qe2# {[%clk 0:00:11]} 0-1


[Site "https://www.chess.com"]

[Event "Titled Tuesday Blitz July 18 Early 2023"]
[White "Travadon, Loic"]
[Black "Krutko, Anatoly"]
[WhiteFideId "26092131"]
[BlackFideId "4185862"]
[WhiteElo "2294"]
[BlackElo "2602"]
[Result "0-1"]
[Round "1"]
[TimeControl "180+2"]
[Date "2023.07.18"]
[WhiteClock "0:00:43"]
[BlackClock "0:01:26"]
[Board "151"]

1. d4 {[%clk 0:02:55]}  Nf6 {[%clk 0:02:57]} 2. c4 {[%clk 0:02:50]}  g6 {[%clk 0:02:57]} 3. g4 {[%clk 0:02:47]}  Nxg4 {[%clk 0:02:54]} 4. e4 {[%clk 0:02:44]}  Nf6 {[%clk 0:02:54]} 5. e5 {[%clk 0:02:42]}  Ng8 {[%clk 0:02:54]} 6. Nc3 {[%clk 0:02:38]}  d6 {[%clk 0:02:54]} 7. f4 {[%clk 0:02:31]}  Bg7 {[%clk 0:02:53]} 8. Nf3 {[%clk 0:02:30]}  Nh6 {[%clk 0:02:48]} 9. Bd3 {[%clk 0:02:20]}  Nf5 {[%clk 0:02:46]} 10. Ne4 {[%clk 0:02:16]}  dxe5 {[%clk 0:02:44]} 11. dxe5 {[%clk 0:02:15]}  Nc6 {[%clk 0:02:42]} 12. b3 {[%clk 0:02:12]}  Ncd4 {[%clk 0:02:37]} 13. Nc3 {[%clk 0:01:58]}  O-O {[%clk 0:02:32]} 14. Bxf5 {[%clk 0:01:52]}  Nxf3+ {[%clk 0:02:24]} 15. Qxf3 {[%clk 0:01:51]}  Bxf5 {[%clk 0:02:25]} 16. Bd2 {[%clk 0:01:48]}  f6 {[%clk 0:02:23]} 17. Qxb7 {[%clk 0:01:37]}  fxe5 {[%clk 0:02:21]} 18. Qd5+ {[%clk 0:01:36]}  Kh8 {[%clk 0:02:15]} 19. fxe5 {[%clk 0:01:27]}  Qxd5 {[%clk 0:02:13]} 20. Nxd5 {[%clk 0:01:27]}  Bxe5 {[%clk 0:02:13]} 21. Bc3 {[%clk 0:01:25]}  Bxc3+ {[%clk 0:02:10]} 22. Nxc3 {[%clk 0:01:26]}  Rad8 {[%clk 0:02:06]} 23. O-O {[%clk 0:01:19]}  e6 {[%clk 0:01:58]} 24. Nb5 {[%clk 0:01:18]}  Rd2 {[%clk 0:01:52]} 25. Nxc7 {[%clk 0:01:16]}  Rfd8 {[%clk 0:01:52]} 26. Rf2 {[%clk 0:01:11]}  Kg7 {[%clk 0:01:37]} 27. Raf1 {[%clk 0:01:02]}  Rxf2 {[%clk 0:01:35]} 28. Rxf2 {[%clk 0:01:02]}  Kf6 {[%clk 0:01:34]} 29. Nb5 {[%clk 0:00:57]}  a6 {[%clk 0:01:33]} 30. Nc3 {[%clk 0:00:55]}  Rd3 {[%clk 0:01:31]} 31. Ne4+ {[%clk 0:00:52]}  Ke5 {[%clk 0:01:30]} 32. Nc5 {[%clk 0:00:53]}  Rd1+ {[%clk 0:01:30]} 33. Kg2 {[%clk 0:00:52]}  a5 {[%clk 0:01:26]} 34. Nb7 {[%clk 0:00:43]}  Be4+ {[%clk 0:01:26]} 0-1


[Site "https://www.chess.com"]

[Event "Titled Tuesday Blitz July 18 Early 2023"]
[White "Sanchez Alvares, Kelvin Antonio"]
[Black "Zaksaite, Salomeja"]
[WhiteFideId "3906680"]
[BlackFideId "12801496"]
[WhiteElo "2602"]
[BlackElo "2294"]
[Result "1-0"]
[Round "1"]
[TimeControl "180+2"]
[Date "2023.07.18"]
[WhiteClock "0:01:41"]
[BlackClock "0:00:00"]
[Board "152"]

1. e4 {[%clk 0:02:53]}  c5 {[%clk 0:02:59]} 2. Ne2 {[%clk 0:02:53]}  Nc6 {[%clk 0:02:58]} 3. d4 {[%clk 0:02:53]}  cxd4 {[%clk 0:02:57]} 4. Nxd4 {[%clk 0:02:54]}  Nf6 {[%clk 0:02:56]} 5. Nc3 {[%clk 0:02:55]}  e5 {[%clk 0:02:57]} 6. Ndb5 {[%clk 0:02:55]}  d6 {[%clk 0:02:56]} 7. Bg5 {[%clk 0:02:55]}  a6 {[%clk 0:02:57]} 8. Na3 {[%clk 0:02:56]}  b5 {[%clk 0:02:57]} 9. Nd5 {[%clk 0:02:56]}  Be7 {[%clk 0:02:58]} 10. Bxf6 {[%clk 0:02:57]}  Bxf6 {[%clk 0:02:58]} 11. c4 {[%clk 0:02:58]}  b4 {[%clk 0:02:57]} 12. Nc2 {[%clk 0:02:59]}  a5 {[%clk 0:02:58]} 13. g3 {[%clk 0:02:59]}  O-O {[%clk 0:02:49]} 14. Bg2 {[%clk 0:03:00]}  Be6 {[%clk 0:02:47]} 15. O-O {[%clk 0:02:58]}  Rb8 {[%clk 0:02:36]} 16. Nxf6+ {[%clk 0:02:55]}  Qxf6 {[%clk 0:02:32]} 17. Qxd6 {[%clk 0:02:30]}  Bxc4 {[%clk 0:02:31]} 18. Qxf6 {[%clk 0:02:29]}  gxf6 {[%clk 0:02:31]} 19. Rfc1 {[%clk 0:02:19]}  Rbc8 {[%clk 0:02:29]} 20. Ne3 {[%clk 0:02:13]}  Be6 {[%clk 0:02:27]} 21. Rc5 {[%clk 0:02:10]}  a4 {[%clk 0:01:17]} 22. Rac1 {[%clk 0:01:47]}  Nd4 {[%clk 0:00:29]} 23. Rxc8 {[%clk 0:01:46]}  Rxc8 {[%clk 0:00:29]} 24. Rxc8+ {[%clk 0:01:46]}  Bxc8 {[%clk 0:00:29]} 25. Nd5 {[%clk 0:01:46]}  a3 {[%clk 0:00:25]} 26. bxa3 {[%clk 0:01:45]}  Be6 {[%clk 0:00:07]} 27. axb4 {[%clk 0:01:42]}  Nb5 {[%clk 0:00:00]} 28. a4 {[%clk 0:01:41]} 1-0


[Site "https://www.chess.com"]

[Event "Titled Tuesday Blitz July 18 Early 2023"]
[White "Spichkin, Alexander"]
[Black "NicolaiMaxime"]
[WhiteFideId "4144074"]
[WhiteElo "2283"]
[BlackElo "2600"]
[Result "0-1"]
[Round "1"]
[TimeControl "180+2"]
[Date "2023.07.18"]
[WhiteClock "0:02:11"]
[BlackClock "0:01:56"]
[Board "155"]

1. f4 {[%clk 0:02:59]}  d5 {[%clk 0:02:58]} 2. Nf3 {[%clk 0:02:59]}  Nh6 {[%clk 0:02:58]} 3. e3 {[%clk 0:02:55]}  Nf5 {[%clk 0:02:57]} 4. Be2 {[%clk 0:02:56]}  g6 {[%clk 0:02:58]} 5. O-O {[%clk 0:02:56]}  Bg7 {[%clk 0:02:58]} 6. Qe1 {[%clk 0:02:55]}  O-O {[%clk 0:02:59]} 7. d3 {[%clk 0:02:56]}  c5 {[%clk 0:02:59]} 8. c3 {[%clk 0:02:55]}  Nc6 {[%clk 0:02:59]} 9. e4 {[%clk 0:02:55]}  dxe4 {[%clk 0:02:54]} 10. dxe4 {[%clk 0:02:55]}  Nd6 {[%clk 0:02:55]} 11. Nbd2 {[%clk 0:02:49]}  e5 {[%clk 0:02:46]} 12. Qg3 {[%clk 0:02:41]}  exf4 {[%clk 0:02:37]} 13. Qxf4 {[%clk 0:02:40]}  Qf6 {[%clk 0:02:17]} 14. Qg3 {[%clk 0:02:32]}  Ne5 {[%clk 0:02:13]} 15. Nc4 {[%clk 0:02:27]}  Nexc4 {[%clk 0:02:08]} 16. e5 {[%clk 0:02:27]}  Nxe5 {[%clk 0:02:08]} 17. Nxe5 {[%clk 0:02:28]}  Qxe5 {[%clk 0:02:09]} 18. Bf4 {[%clk 0:02:27]}  Qxe2 {[%clk 0:02:08]} 19. Bxd6 {[%clk 0:02:27]}  Re8 {[%clk 0:01:59]} 20. Rae1 {[%clk 0:02:26]}  Qb5 {[%clk 0:01:59]} 21. Bxc5 {[%clk 0:02:11]}  Qxc5+ {[%clk 0:01:56]} 0-1


[Site "https://www.chess.com"]

[Event "Titled Tuesday Blitz July 18 Early 2023"]
[White "Garcia Blanco, Omar"]
[Black "Mikhaylova, Irina"]
[WhiteFideId "2287153"]
[BlackFideId "4109040"]
[WhiteElo "2597"]
[BlackElo "2281"]
[Result "1-0"]
[Round "1"]
[TimeControl "180+2"]
[Date "2023.07.18"]
[WhiteClock "0:00:08"]
[BlackClock "0:00:00"]
[Board "156"]

1. e4 {[%clk 0:03:00]}  c5 {[%clk 0:02:59]} 2. Nc3 {[%clk 0:03:01]}  Nc6 {[%clk 0:02:59]} 3. Bb5 {[%clk 0:03:01]}  Nd4 {[%clk 0:03:00]} 4. Nf3 {[%clk 0:03:01]}  e6 {[%clk 0:02:58]} 5. O-O {[%clk 0:03:01]}  Ne7 {[%clk 0:02:58]} 6. Nxd4 {[%clk 0:03:00]}  cxd4 {[%clk 0:02:58]} 7. Ne2 {[%clk 0:03:01]}  Nc6 {[%clk 0:02:59]} 8. c3 {[%clk 0:02:54]}  Bc5 {[%clk 0:02:48]} 9. b4 {[%clk 0:02:54]}  Bb6 {[%clk 0:02:47]} 10. Bb2 {[%clk 0:02:45]}  dxc3 {[%clk 0:02:41]} 11. Bxc3 {[%clk 0:02:46]}  O-O {[%clk 0:02:36]} 12. d4 {[%clk 0:02:36]}  d5 {[%clk 0:02:25]} 13. e5 {[%clk 0:02:37]}  a5 {[%clk 0:02:25]} 14. a3 {[%clk 0:02:35]}  Bd7 {[%clk 0:02:20]} 15. Bd3 {[%clk 0:02:34]}  axb4 {[%clk 0:02:18]} 16. axb4 {[%clk 0:02:35]}  Rxa1 {[%clk 0:02:17]} 17. Qxa1 {[%clk 0:02:28]}  f5 {[%clk 0:02:04]} 18. Qb2 {[%clk 0:01:59]}  f4 {[%clk 0:01:48]} 19. b5 {[%clk 0:01:56]}  Ne7 {[%clk 0:01:22]} 20. f3 {[%clk 0:01:49]}  Nf5 {[%clk 0:01:04]} 21. Rc1 {[%clk 0:01:17]}  Qg5 {[%clk 0:00:58]} 22. Bxf5 {[%clk 0:01:12]}  Rxf5 {[%clk 0:00:49]} 23. Kh1 {[%clk 0:00:59]}  Qh4 {[%clk 0:00:37]} 24. Be1 {[%clk 0:00:57]}  Qh5 {[%clk 0:00:36]} 25. Qa3 {[%clk 0:00:47]}  Qf7 {[%clk 0:00:25]} 26. Qd6 {[%clk 0:00:46]}  Bd8 {[%clk 0:00:24]} 27. Qb8 {[%clk 0:00:45]}  Qe8 {[%clk 0:00:23]} 28. Qxb7 {[%clk 0:00:42]}  Bxb5 {[%clk 0:00:20]} 29. Ng1 {[%clk 0:00:22]}  Bc4 {[%clk 0:00:19]} 30. Ra1 {[%clk 0:00:21]}  Rf7 {[%clk 0:00:18]} 31. Qb8 {[%clk 0:00:20]}  Rf8 {[%clk 0:00:18]} 32. Ra8 {[%clk 0:00:20]}  Bb5 {[%clk 0:00:17]} 33. Qa7 {[%clk 0:00:14]}  Qd7 {[%clk 0:00:16]} 34. Qa3 {[%clk 0:00:12]}  Be7 {[%clk 0:00:16]} 35. Rxf8+ {[%clk 0:00:12]}  Bxf8 {[%clk 0:00:16]} 36. Bb4 {[%clk 0:00:12]}  Qe8 {[%clk 0:00:00]} 37. Qa5 {[%clk 0:00:08]} 1-0


[Site "https://www.chess.com"]

[Event "Titled Tuesday Blitz July 18 Early 2023"]
[White "Mis, Mieszko"]
[Black "SicilianPanzer"]
[WhiteFideId "1196448"]
[WhiteElo "2595"]
[BlackElo "2279"]
[Result "1-0"]
[Round "1"]
[TimeControl "180+2"]
[Date "2023.07.18"]
[WhiteClock "0:01:47"]
[BlackClock "0:00:00"]
[Board "158"]

1. Nf3 {[%clk 0:03:00]}  Nf6 {[%clk 0:02:59]} 2. b3 {[%clk 0:02:59]}  g6 {[%clk 0:02:58]} 3. Bb2 {[%clk 0:02:58]}  Bg7 {[%clk 0:02:58]} 4. g3 {[%clk 0:02:59]}  a5 {[%clk 0:02:58]} 5. Bg2 {[%clk 0:02:59]}  a4 {[%clk 0:02:58]} 6. O-O {[%clk 0:03:00]}  O-O {[%clk 0:02:57]} 7. c4 {[%clk 0:02:59]}  c6 {[%clk 0:02:50]} 8. d3 {[%clk 0:02:54]}  d5 {[%clk 0:02:27]} 9. Nbd2 {[%clk 0:02:51]}  Nbd7 {[%clk 0:02:18]} 10. Qc2 {[%clk 0:02:47]}  Re8 {[%clk 0:02:09]} 11. Rfc1 {[%clk 0:02:45]}  a3 {[%clk 0:02:07]} 12. Bc3 {[%clk 0:02:41]}  e5 {[%clk 0:02:07]} 13. cxd5 {[%clk 0:02:41]}  cxd5 {[%clk 0:01:51]} 14. Bb4 {[%clk 0:02:40]}  e4 {[%clk 0:01:46]} 15. Nd4 {[%clk 0:02:37]}  e3 {[%clk 0:01:26]} 16. N2f3 {[%clk 0:02:22]}  Ng4 {[%clk 0:01:03]} 17. fxe3 {[%clk 0:02:20]}  Nxe3 {[%clk 0:01:02]} 18. Qc7 {[%clk 0:02:20]}  Qf6 {[%clk 0:00:39]} 19. Bc3 {[%clk 0:02:12]}  Qb6 {[%clk 0:00:37]} 20. Qxb6 {[%clk 0:02:09]}  Nxb6 {[%clk 0:00:38]} 21. Bf1 {[%clk 0:02:04]}  Bh6 {[%clk 0:00:32]} 22. Re1 {[%clk 0:01:58]}  Bd7 {[%clk 0:00:30]} 23. Bd2 {[%clk 0:01:53]}  Rac8 {[%clk 0:00:30]} 24. Rac1 {[%clk 0:01:53]}  Bg7 {[%clk 0:00:18]} 25. Rxc8 {[%clk 0:01:51]}  Bxc8 {[%clk 0:00:18]} 26. Rc1 {[%clk 0:01:51]}  Nxf1 {[%clk 0:00:18]} 27. Kxf1 {[%clk 0:01:50]}  Bh3+ {[%clk 0:00:19]} 28. Kf2 {[%clk 0:01:50]}  Rc8 {[%clk 0:00:18]} 29. Rxc8+ {[%clk 0:01:49]}  Nxc8 {[%clk 0:00:19]} 30. Bb4 {[%clk 0:01:49]}  Na7 {[%clk 0:00:11]} 31. Bxa3 {[%clk 0:01:49]}  Bd7 {[%clk 0:00:07]} 32. Bc5 {[%clk 0:01:48]}  Nc6 {[%clk 0:00:07]} 33. a4 {[%clk 0:01:48]}  g5 {[%clk 0:00:06]} 34. Nxc6 {[%clk 0:01:47]}  Bxc6 {[%clk 0:00:06]} 35. Nxg5 {[%clk 0:01:48]}  d4 {[%clk 0:00:02]} 36. Nf3 {[%clk 0:01:48]}  Bd5 {[%clk 0:00:00]} 37. b4 {[%clk 0:01:47]} 1-0


[Site "https://www.chess.com"]

[Event "Titled Tuesday Blitz July 18 Early 2023"]
[White "arturdailima"]
[Black "Shukhman, Anna"]
[BlackFideId "54180058"]
[WhiteElo "2278"]
[BlackElo "2594"]
[Result "0-1"]
[Round "1"]
[TimeControl "180+2"]
[Date "2023.07.18"]
[WhiteClock "0:00:32"]
[BlackClock "0:00:07"]
[Board "159"]

1. e4 {[%clk 0:02:59]}  c5 {[%clk 0:02:59]} 2. Nf3 {[%clk 0:03:00]}  g6 {[%clk 0:02:57]} 3. d4 {[%clk 0:02:59]}  cxd4 {[%clk 0:02:56]} 4. Nxd4 {[%clk 0:03:00]}  Nf6 {[%clk 0:02:56]} 5. e5 {[%clk 0:02:52]}  Qa5+ {[%clk 0:02:54]} 6. Nc3 {[%clk 0:02:46]}  Qxe5+ {[%clk 0:02:54]} 7. Be2 {[%clk 0:02:47]}  Bg7 {[%clk 0:02:53]} 8. O-O {[%clk 0:02:47]}  O-O {[%clk 0:02:51]} 9. Re1 {[%clk 0:02:42]}  Qa5 {[%clk 0:02:48]} 10. Bf3 {[%clk 0:02:40]}  Qd8 {[%clk 0:02:41]} 11. Bf4 {[%clk 0:02:32]}  Nc6 {[%clk 0:02:38]} 12. Ndb5 {[%clk 0:02:32]}  d6 {[%clk 0:02:36]} 13. h4 {[%clk 0:02:22]}  a6 {[%clk 0:02:34]} 14. Na3 {[%clk 0:02:20]}  e5 {[%clk 0:02:27]} 15. Bg5 {[%clk 0:02:17]}  Be6 {[%clk 0:02:24]} 16. Ne4 {[%clk 0:02:14]}  d5 {[%clk 0:02:15]} 17. Nxf6+ {[%clk 0:02:14]}  Bxf6 {[%clk 0:02:14]} 18. Bxf6 {[%clk 0:02:15]}  Qxf6 {[%clk 0:02:13]} 19. Bxd5 {[%clk 0:02:16]}  Rfd8 {[%clk 0:02:12]} 20. c4 {[%clk 0:02:16]}  Nb4 {[%clk 0:02:07]} 21. Qf3 {[%clk 0:02:08]}  Nxd5 {[%clk 0:02:06]} 22. cxd5 {[%clk 0:02:06]}  Qxf3 {[%clk 0:02:04]} 23. gxf3 {[%clk 0:02:05]}  Rxd5 {[%clk 0:01:49]} 24. Nc4 {[%clk 0:02:05]}  Rd4 {[%clk 0:01:48]} 25. Nxe5 {[%clk 0:02:01]}  Rxh4 {[%clk 0:01:48]} 26. Rac1 {[%clk 0:01:58]}  Rd8 {[%clk 0:01:47]} 27. Rc7 {[%clk 0:01:53]}  b5 {[%clk 0:01:34]} 28. Ra7 {[%clk 0:01:49]}  Rd6 {[%clk 0:01:28]} 29. a3 {[%clk 0:01:37]}  b4 {[%clk 0:01:27]} 30. a4 {[%clk 0:01:26]}  b3 {[%clk 0:01:25]} 31. Re4 {[%clk 0:01:22]}  Rxe4 {[%clk 0:01:22]} 32. fxe4 {[%clk 0:01:23]}  Rd2 {[%clk 0:01:10]} 33. Rxa6 {[%clk 0:01:22]}  Rxb2 {[%clk 0:01:09]} 34. Rb6 {[%clk 0:01:23]}  Ra2 {[%clk 0:01:09]} 35. Kg2 {[%clk 0:01:20]}  Rxa4 {[%clk 0:01:08]} 36. f3 {[%clk 0:01:18]}  Ra2+ {[%clk 0:01:00]} 37. Kg3 {[%clk 0:01:17]}  Rd2 {[%clk 0:00:58]} 38. Kf4 {[%clk 0:01:13]}  h5 {[%clk 0:00:53]} 39. Ke3 {[%clk 0:01:13]}  Rg2 {[%clk 0:00:51]} 40. Nd3 {[%clk 0:01:12]}  h4 {[%clk 0:00:51]} 41. Nf4 {[%clk 0:01:12]}  Rg1 {[%clk 0:00:46]} 42. Nxe6 {[%clk 0:01:12]}  fxe6 {[%clk 0:00:46]} 43. Rxb3 {[%clk 0:01:12]}  h3 {[%clk 0:00:32]} 44. Rb2 {[%clk 0:01:03]}  Rh1 {[%clk 0:00:14]} 45. Kf4 {[%clk 0:01:01]}  h2 {[%clk 0:00:09]} 46. Kg3 {[%clk 0:00:58]}  Kf7 {[%clk 0:00:08]} 47. Rxh2 {[%clk 0:00:58]}  Rxh2 {[%clk 0:00:08]} 48. Kxh2 {[%clk 0:00:58]}  Kf6 {[%clk 0:00:08]} 49. Kg3 {[%clk 0:00:47]}  Ke5 {[%clk 0:00:08]} 50. Kg4 {[%clk 0:00:46]}  Kd4 {[%clk 0:00:05]} 51. Kg5 {[%clk 0:00:41]}  Ke3 {[%clk 0:00:05]} 52. Kxg6 {[%clk 0:00:41]}  Kxf3 {[%clk 0:00:05]} 53. e5 {[%clk 0:00:41]}  Ke4 {[%clk 0:00:04]} 54. Kg5 {[%clk 0:00:32]}  Kxe5 {[%clk 0:00:05]} 55. Kg4 {[%clk 0:00:32]}  Kd4 {[%clk 0:00:05]} 56. Kg3 {[%clk 0:00:33]}  e5 {[%clk 0:00:06]} 57. Kf2 {[%clk 0:00:33]}  Kd3 {[%clk 0:00:06]} 58. Ke1 {[%clk 0:00:33]}  Ke3 {[%clk 0:00:07]} 59. Kf1 {[%clk 0:00:32]}  Kd2 {[%clk 0:00:07]} 0-1


[Site "https://www.chess.com"]

[Event "Titled Tuesday Blitz July 18 Early 2023"]
[White "Ambartsumova, Karina"]
[Black "Ardila, Oscar Humberto"]
[WhiteFideId "4166299"]
[BlackFideId "4404742"]
[WhiteElo "2593"]
[BlackElo "2274"]
[Result "1-0"]
[Round "1"]
[TimeControl "180+2"]
[Date "2023.07.18"]
[WhiteClock "0:00:18"]
[BlackClock "0:00:00"]
[Board "160"]

1. e4 {[%clk 0:02:58]}  e5 {[%clk 0:02:52]} 2. Nf3 {[%clk 0:02:58]}  Nf6 {[%clk 0:02:53]} 3. Bc4 {[%clk 0:02:54]}  Nxe4 {[%clk 0:02:52]} 4. Nxe5 {[%clk 0:02:41]}  d5 {[%clk 0:02:51]} 5. Be2 {[%clk 0:02:37]}  Bd6 {[%clk 0:02:50]} 6. d4 {[%clk 0:02:37]}  O-O {[%clk 0:02:49]} 7. O-O {[%clk 0:02:37]}  Nd7 {[%clk 0:02:49]} 8. Nxd7 {[%clk 0:02:18]}  Bxd7 {[%clk 0:02:48]} 9. c4 {[%clk 0:02:10]}  c6 {[%clk 0:02:10]} 10. Nc3 {[%clk 0:02:09]}  Qh4 {[%clk 0:01:58]} 11. f4 {[%clk 0:01:55]}  Rfe8 {[%clk 0:01:44]} 12. Nxe4 {[%clk 0:01:36]}  dxe4 {[%clk 0:01:38]} 13. Be3 {[%clk 0:01:33]}  f5 {[%clk 0:01:30]} 14. Qb3 {[%clk 0:01:16]}  Kh8 {[%clk 0:01:08]} 15. Qxb7 {[%clk 0:01:12]}  Red8 {[%clk 0:01:03]} 16. Qa6 {[%clk 0:01:05]}  Rab8 {[%clk 0:01:02]} 17. b3 {[%clk 0:01:01]}  Rb6 {[%clk 0:00:57]} 18. Qxa7 {[%clk 0:00:55]}  Rbb8 {[%clk 0:00:55]} 19. c5 {[%clk 0:00:25]}  Ra8 {[%clk 0:00:51]} 20. Qb7 {[%clk 0:00:23]}  Rab8 {[%clk 0:00:49]} 21. Qa6 {[%clk 0:00:22]}  Bc7 {[%clk 0:00:41]} 22. Qc4 {[%clk 0:00:23]}  g5 {[%clk 0:00:34]} 23. g3 {[%clk 0:00:22]}  Qh3 {[%clk 0:00:33]} 24. Qf7 {[%clk 0:00:18]}  g4 {[%clk 0:00:07]} 25. d5 {[%clk 0:00:18]}  Qh6 {[%clk 0:00:00]} 26. Bd4+ {[%clk 0:00:18]} 1-0


[Site "https://www.chess.com"]